bitfinex-derivatives/quotes_SOLF0:USTF0_20250924
["timestamp","ask_amount","ask_price","bid_price","bid_amount"]
[1758715638141,1.3480452,212.69,212.63,3.62777204]
[1758715638335,12.0605,212.68,212.64,3.62777204]
[1758715638533,12.0605,212.68,212.65,3.62777204]
[1758715638733,7.83,212.68,212.66,3.62777204]
[1758715638935,7.83,212.68,212.67,3.62777204]
[1758715639337,7.83,212.68,212.62,117.86]
[1758715639536,7.83,212.68,212.63,11.32439901]
[1758715639739,7.83,212.68,212.64,3.62439901]
[1758715639939,13.4073452,212.74,212.65,3.62439901]
[1758715640138,13.4073452,212.74,212.66,3.62439901]
[1758715640444,13.4073452,212.74,212.67,3.62439901]
[1758715640645,7.83,212.72,212.68,3.62439901]
[1758715640846,7.83,212.72,212.69,3.62439901]
[1758715641038,7.83,212.72,212.64,9.0480452]
[1758715641240,7.83,212.72,212.65,3.62267337]
[1758715641444,7.83,212.72,212.66,3.62267337]
[1758715641647,12.0595,212.73,212.67,3.62267337]
[1758715641849,4.2295,212.73,212.68,3.62267337]
[1758715642148,7.83,212.72,212.64,7.7]
[1758715642345,7.83,212.72,212.65,3.62208081]
[1758715642545,7.83,212.72,212.66,3.62208081]
[1758715642738,12.0597,212.72,212.64,7.7]
[1758715643047,12.0597,212.72,212.65,3.62325814]
[1758715643242,12.0597,212.72,212.66,3.62325814]
[1758715643446,12.0597,212.72,212.64,7.7]
[1758715643647,12.0597,212.72,212.65,3.62230213]
[1758715643850,12.0597,212.72,212.66,3.62230213]
[1758715644148,4.2297,212.72,212.67,3.62230213]
[1758715644345,7.43,212.71,212.64,7.7]
[1758715644546,7.43,212.71,212.65,3.62156237]
[1758715644736,11.6597,212.72,212.66,3.62156237]
[1758715644935,7.43,212.7,212.67,3.62156237]
[1758715645137,7.43,212.7,212.64,7.7]
[1758715645342,8.7780452,212.71,212.65,3.62217137]
[1758715645545,4.2303,212.69,212.64,7.7]
[1758715645838,4.2303,212.69,212.65,3.62187086]
[1758715646047,4.2303,212.69,212.65,7.79]
[1758715646652,11.6603,212.69,212.65,7.79]
[1758715647343,4.2306,212.67,212.61,125.53]
[1758715647546,11.6606,212.67,212.62,11.41093246]
[1758715647753,1.3480452,212.68,212.57,9.1380452]
[1758715648047,1.3480452,212.68,212.58,3.62172459]
[1758715648048,7.43,212.67,212.58,3.62172459]
[1758715648248,7.43,212.67,212.59,3.62172459]
[1758715648452,7.43,212.67,212.6,3.62172459]
[1758715648643,7.43,212.67,212.61,3.62172459]
[1758715648839,7.43,212.67,212.57,9.1380452]
[1758715649145,11.6614,212.63,212.58,11.41140804]
[1758715649344,11.6614,212.63,212.59,3.62140804]
[1758715649640,11.6614,212.63,212.6,3.62140804]
[1758715649839,11.6614,212.63,212.58,7.79]
[1758715650140,11.6617,212.62,212.54,130.26784607]
[1758715650342,7.43,212.62,212.55,3.62139923]
[1758715650544,7.43,212.62,212.56,3.62139923]
[1758715650741,7.43,212.62,212.57,11.41139923]
[1758715650942,7.43,212.62,212.55,7.79]
[1758715651149,7.43,212.62,212.56,3.62109997]
[1758715651350,7.43,212.62,212.58,7.79]
[1758715652351,7.43,212.62,212.54,142.29084607]
[1758715652548,7.43,212.62,212.55,3.61804025]
[1758715652746,7.43,212.62,212.56,3.61804025]
[1758715652946,7.43,212.62,212.57,11.40804025]
[1758715653147,7.43,212.62,212.57,7.79]
[1758715653752,7.43,212.62,212.58,11.40636918]
[1758715654052,7.43,212.62,212.58,7.79]
[1758715655255,1.3480452,212.66,212.57,7.79]
[1758715655460,1.3480452,212.66,212.57,9.1380452]
[1758715655852,4.2313,212.64,212.57,9.1380452]
[1758715656052,1.3480452,212.66,212.57,9.1380452]
[1758715657357,4.2315,212.63,212.57,9.1380452]
[1758715658156,1.3480452,212.89,212.71,65.7969]
[1758715658360,144.69575037,212.94,212.8,7.79]
[1758715658361,78.96785037,212.94,212.8,7.79]
[1758715658563,4.2254,212.93,212.8,7.79]
[1758715658864,4.2254,212.93,212.83,7.79]
[1758715659257,4.2258,212.91,212.83,7.79]
[1758715659454,4.2258,212.91,212.82,1.3480452]
[1758715660064,10.0158,212.91,212.82,1.3480452]
[1758715660761,10.0158,212.91,212.79,7.79]
[1758715662965,10.0158,212.91,212.8,4.228]
[1758715664064,5.79,212.91,212.8,4.228]
[1758715664259,5.79,212.97,212.83,7.79]
[1758715664470,5.79,212.97,212.85,3.23745014]
[1758715664662,0.41149138,213.02,212.89,7.79]
[1758715664864,5.79,213.01,212.89,7.79]
[1758715665367,5.79,213.01,212.91,7.79]
[1758715665562,5.79,213.07,212.94,7.79]
[1758715666473,5.79,213.07,212.95,3.23745014]
[1758715666672,5.79,213.07,212.97,7.79]
[1758715666871,5.79,213.07,212.98,3.58645879]
[1758715667072,5.79,213.07,212.97,7.79]
[1758715667572,89.12600257,213.08,212.98,4.2243]
[1758715667972,5.79,213.11,212.99,11.37261122]
[1758715668267,119.36,213.14,213.01,7.79]
[1758715668462,5.79,213.12,213.01,7.79]
[1758715668665,5.79,213.11,212.95,127.15]
[1758715668864,5.79,213.11,212.96,3.57946802]
[1758715669067,5.79,213.11,212.97,11.36946802]
[1758715669269,5.79,213.11,212.97,7.79]
[1758715670171,10.0119,213.11,212.97,7.79]
[1758715670571,10.0119,213.11,212.95,119.36]
[1758715670572,5.79,213.11,212.99,73.5001]
[1758715670769,119.36,213.15,213.0,7.79]
[1758715671772,119.36,213.15,213.02,7.79]
[1758715672375,119.36,213.15,213.03,7.79]
[1758715672576,10.0118,213.12,213.03,7.79]
[1758715672871,5.79,213.12,213.03,7.79]
[1758715674682,4.2219,213.11,212.99,7.7]
[1758715675269,4.2224,213.09,212.99,7.7]
[1758715675471,5.78,213.08,212.99,7.7]
[1758715678681,10.0025,213.08,212.99,7.7]
[1758715679679,10.0025,213.08,212.94,7.95]
[1758715679680,65.6923,213.05,212.94,7.95]
[1758715679883,5.78,213.06,212.94,7.95]
[1758715680184,65.6843,213.08,212.94,7.95]
[1758715680185,5.78,213.03,212.94,7.95]
[1758715680384,5.78,213.03,212.89,7.95]
[1758715681289,5.78,212.99,212.89,7.95]
[1758715681582,4.226,212.91,212.82,7.95]
[1758715681786,5.78,212.92,212.82,7.95]
[1758715682188,5.78,212.98,212.87,7.95]
[1758715683288,5.78,212.99,212.83,7.95]
[1758715683589,5.78,212.99,212.84,4.2272]
[1758715684090,5.78,212.99,212.86,4.2267]
[1758715684584,5.78,212.99,212.86,7.95]
[1758715685182,5.78,212.99,212.9,4.226]
[1758715686489,76.34,213.01,212.87,4.2264]
[1758715686685,76.34,213.01,212.84,7.95]
[1758715686686,5.78,213.0,212.84,7.95]
[1758715687082,4.2246,212.97,212.86,4.2268]
[1758715687283,5.78,212.96,212.86,4.2268]
[1758715687490,5.78,212.96,212.84,73.7058]
[1758715687684,5.78,212.96,212.85,7.95]
[1758715687883,5.78,212.96,212.88,4.2263]
[1758715688085,5.78,212.96,212.88,7.95]
[1758715688395,5.78,213.01,212.88,7.95]
[1758715688596,10.0038,213.01,212.9,4.226]
[1758715689594,113.52,213.02,212.88,7.95]
[1758715689595,5.78,212.98,212.88,7.95]
[1758715690085,5.78,212.99,212.83,7.95]
[1758715690492,10.0051,212.95,212.84,4.227]
[1758715691292,5.78,212.95,212.84,4.227]
[1758715694095,5.78,212.92,212.83,7.95]
[1758715694296,5.78,212.92,212.78,7.95]
[1758715694686,65.7272,212.94,212.78,7.95]
[1758715694889,5.78,212.93,212.78,7.95]
[1758715695088,65.7272,212.94,212.78,7.95]
[1758715695388,5.78,212.93,212.78,7.95]
[1758715695798,5.78,212.89,212.78,12.1782]
[1758715697404,10.0064,212.89,212.78,12.1782]
[1758715698300,10.0064,212.89,212.78,16.02242831]
[1758715698899,10.0064,212.89,212.78,12.1782]
[1758715699289,10.0064,212.89,212.78,16.02242831]
[1758715699798,4.2266,212.88,212.78,16.02242831]
[1758715700198,4.2266,212.88,212.79,3.84422831]
[1758715700398,5.78,212.89,212.79,3.84422831]
[1758715701290,5.78,212.89,212.8,3.84422831]
[1758715701604,10.0064,212.89,212.79,3.84422831]
[1758715702302,4.2266,212.88,212.81,3.84422831]
[1758715702603,5.78,212.89,212.81,3.84422831]
[1758715704298,10.0064,212.89,212.81,3.84422831]
[1758715704906,5.8,212.97,212.84,3.84422831]
[1758715705204,124.68,212.97,212.83,13.83858075]
[1758715705406,125.4,212.97,212.84,3.84422831]
[1758715705803,119.6,212.97,212.83,13.83858075]
[1758715706010,10.0258,212.92,212.83,13.83858075]
[1758715706198,10.0258,212.92,212.84,3.84422831]
[1758715706400,10.0258,212.92,212.83,13.83858075]
[1758715706601,10.0258,212.92,212.83,11.73422831]
[1758715707710,71.5317,212.92,212.83,3.84422831]
[1758715707905,71.5317,212.92,212.79,7.89]
[1758715707906,65.7317,212.92,212.81,3.84422831]
[1758715708115,5.8,212.91,212.82,3.84422831]
[1758715709311,4.2264,212.88,212.81,3.84422831]
[1758715710719,4.2268,212.86,212.79,3.84422831]
[1758715710915,4.2268,212.86,212.8,3.84422831]
[1758715711217,4.2268,212.86,212.79,3.84422831]
[1758715711620,5.8,212.88,212.8,3.84422831]
[1758715712921,4.2267,212.87,212.8,3.84422831]
[1758715714320,4.2267,212.87,212.79,11.73422831]
[1758715717019,4.2267,212.87,212.79,7.89]
[1758715717214,4.2267,212.87,212.79,11.73422831]
[1758715717616,65.7389,212.9,212.79,7.89]
[1758715717821,5.8,212.89,212.76,3.84422831]
[1758715718025,5.8,212.89,212.77,7.89]
[1758715719222,4.2267,212.87,212.77,11.73422831]
[1758715719725,5.8,212.85,212.77,11.73422831]
[1758715719919,5.8,212.85,212.77,7.89]
[1758715721025,4.2276,212.82,212.77,7.89]
[1758715721325,10.0276,212.82,212.77,7.89]
[1758715723227,10.0279,212.81,212.75,3.84422831]
[1758715723419,10.0279,212.81,212.74,11.73422831]
[1758715724222,10.0279,212.81,212.75,3.84422831]
[1758715724724,10.0279,212.81,212.74,11.73422831]
[1758715725031,5.8,212.83,212.72,3.84422831]
[1758715725525,4.2285,212.78,212.72,3.84422831]
[1758715725727,4.2285,212.78,212.69,13.12781267]
[1758715725728,5.8,212.79,212.71,3.84422831]
[1758715726728,65.7728,212.79,212.69,3.84422831]
[1758715726930,5.8,212.77,212.67,3.84422831]
[1758715727126,5.8,212.77,212.66,3.84422831]
[1758715727430,5.8,212.74,212.66,3.84422831]
[1758715728224,5.8,212.74,212.67,7.89]
[1758715728625,5.8,212.79,212.67,7.89]
[1758715729028,5.8,212.79,212.67,11.73422831]
[1758715729432,5.8,212.74,212.67,7.89]
[1758715730227,4.2293,212.73,212.67,7.89]
[1758715730430,5.8,212.74,212.67,7.89]
[1758715730732,10.0293,212.74,212.67,7.89]
[1758715732728,5.8,212.79,212.67,11.73422831]
[1758715732933,5.8,212.79,212.68,7.89]
[1758715733132,5.8,212.79,212.69,4.23]
[1758715733133,10.0281,212.79,212.69,4.23]
[1758715733338,10.0281,212.79,212.7,7.89]
[1758715733628,4.2274,212.83,212.71,4.2297]
[1758715733833,10.0274,212.83,212.72,7.62]
[1758715735137,10.0274,212.83,212.73,7.62]
[1758715738036,5.8,212.83,212.74,7.62]
[1758715738238,5.8,212.83,212.74,3.84422831]
[1758715738445,5.8,212.87,212.75,7.24]
[1758715738738,5.8,212.87,212.78,7.24]
[1758715739341,10.0266,212.87,212.78,7.24]
[1758715739541,5.8,212.87,212.78,7.24]
[1758715741444,4.2269,212.86,212.78,7.24]
[1758715741745,5.8,212.87,212.78,7.24]
[1758715742639,82.43174719,212.9,212.81,7.24]
[1758715743047,82.43174719,212.9,212.83,1.34728605]
[1758715743048,78.20574719,212.9,212.83,1.34728605]
[1758715743343,78.20574719,212.9,212.84,7.24]
[1758715743540,4.2256,212.92,212.84,7.24]
[1758715743742,346.4652,212.94,212.84,7.24]
[1758715743938,5.8,212.93,212.84,7.24]
[1758715744146,7.14728605,212.93,212.84,7.24]
[1758715745342,4.226,212.9,212.84,7.24]
[1758715748243,1.34728605,212.9,212.81,3.84422831]
[1758715748448,5.8,212.89,212.79,7.24]
[1758715749549,5.8,212.86,212.79,7.24]
[1758715749756,5.8,212.86,212.76,1.34728605]
[1758715750555,1.34728605,212.87,212.75,11.08422831]
[1758715750556,5.8,212.83,212.75,7.24]
[1758715751355,5.8,212.79,212.75,7.24]
[1758715752157,4.2281,212.8,212.71,7.24]
[1758715752158,5.8,212.8,212.71,7.24]
[1758715752548,65.7734,212.79,212.71,7.24]
[1758715752758,65.7734,212.79,212.66,5.23781267]
[1758715752759,5.8,212.77,212.67,7.24]
[1758715753057,124.04,212.77,212.67,7.24]
[1758715754357,4.2292,212.74,212.67,7.24]
[1758715754545,5.8,212.74,212.67,7.24]
[1758715755356,4.2295,212.72,212.66,7.24]
[1758715755756,10.0292,212.74,212.66,7.24]
[1758715757761,5.8,212.74,212.66,7.24]
[1758715758653,10.0299,212.71,212.66,7.24]
[1758715759063,5.8,212.71,212.66,7.24]
[1758715759354,5.8,212.76,212.66,7.24]
[1758715760252,10.0288,212.76,212.66,7.24]
[1758715762858,4.2283,212.79,212.69,7.24]
[1758715763854,7.14728605,212.8,212.72,7.77]
[1758715764157,5.8,212.8,212.72,7.77]
[1758715764958,10.0281,212.8,212.72,7.77]
[1758715765661,4.2283,212.79,212.72,7.77]
[1758715766062,7.14728605,212.8,212.72,7.77]
[1758715766261,4.2288,212.76,212.72,7.77]
[1758715766457,4.2288,212.76,212.68,12.96151436]
[1758715766657,4.2288,212.76,212.68,9.11728605]
[1758715769362,5.8,212.72,212.65,7.77]
[1758715770557,4.2304,212.68,212.62,206.38249039]
[1758715770758,4.2304,212.68,212.63,7.77]
[1758715770759,10.0304,212.68,212.63,7.77]
[1758715771565,10.0304,212.68,212.62,214.15249039]
[1758715771954,5.8,212.68,212.62,214.15249039]
[1758715772671,4.2305,212.67,212.63,7.77]
[1758715772860,5.8,212.68,212.63,7.77]
[1758715773367,1.34728605,212.72,212.63,7.77]
[1758715775366,4.2301,212.7,212.63,7.77]
[1758715775568,1.34728605,212.72,212.63,7.77]
[1758715776061,4.23,212.7,212.63,7.77]
[1758715777165,65.7607,212.83,212.63,7.77]
[1758715777467,65.7607,212.83,212.66,7.77]
[1758715777468,1.34728605,212.76,212.66,7.77]
[1758715777672,4.2293,212.74,212.66,12.0006]
[1758715777866,4.2293,212.74,212.66,7.77]
[1758715779269,4.2293,212.74,212.67,4.2304]
[1758715779469,5.57608605,212.76,212.66,7.77]
[1758715779669,1.34728605,212.76,212.66,7.77]
[1758715779867,5.8,212.77,212.69,7.77]
[1758715781267,4.2288,212.76,212.69,7.77]
[1758715781970,4.2291,212.75,212.69,7.77]
[1758715784073,1.34728605,212.76,212.69,7.77]
[1758715784275,5.8,212.77,212.69,7.77]
[1758715785168,4.2289,212.76,212.69,7.77]
[1758715788070,4.2289,212.76,212.69,12.0]
[1758715788672,5.8,212.77,212.7,4.2298]
[1758715792572,5.8,212.77,212.69,11.61422831]
[1758715793179,1.34728605,212.76,212.69,11.61422831]
[1758715794080,1.34728605,212.76,212.7,3.84422831]
[1758715794081,5.57608605,212.76,212.7,3.84422831]
[1758715794283,1.34728605,212.76,212.7,3.84422831]
[1758715794484,1.34728605,212.76,212.69,11.61422831]
[1758715795280,4.2291,212.75,212.69,11.61422831]
[1758715795683,4.2291,212.75,212.7,3.84422831]
[1758715795881,1.34728605,212.76,212.7,3.84422831]
[1758715796275,1.34728605,212.76,212.7,11.70422831]
[1758715796476,11.37618605,212.76,212.7,11.70422831]
[1758715797385,11.37618605,212.76,212.72,7.86]
[1758715798480,5.8,212.75,212.72,7.86]
[1758715799381,4.2284,212.78,212.72,7.24]
[1758715800082,4.2287,212.77,212.72,7.24]
[1758715800289,5.82,212.76,212.72,7.24]
[1758715800783,5.82,212.79,212.71,3.84422831]
[1758715801086,5.82,212.79,212.7,3.84422831]
[1758715801779,5.82,212.79,212.68,11.4702]
[1758715801780,5.82,212.79,212.69,3.84422831]
[1758715801977,4.229,212.75,212.7,3.84422831]
[1758715802182,4.229,212.75,212.71,7.24]
[1758715802387,4.229,212.75,212.7,3.84422831]
[1758715802779,4.229,212.75,212.71,7.24]
[1758715803186,4.229,212.75,212.7,3.84422831]
[1758715803487,5.82,212.74,212.67,3.84422831]
[1758715803985,4.2298,212.71,212.67,11.08422831]
[1758715805282,5.82,212.7,212.66,7.24]
[1758715805687,5.82,212.7,212.65,3.84422831]
[1758715805886,65.7887,212.74,212.66,3.66101967]
[1758715806085,5.82,212.71,212.67,3.66101967]
[1758715806389,5.82,212.71,212.62,3.84422831]
[1758715806590,5.82,212.71,212.63,3.66125225]
[1758715806884,5.82,212.71,212.64,3.66125225]
[1758715807089,5.82,212.71,212.62,3.84422831]
[1758715807290,4.2306,212.67,212.63,7.24]
[1758715807583,5.82,212.71,212.63,7.24]
[1758715807778,5.82,212.71,212.65,7.24]
[1758715808989,5.82,212.71,212.65,11.08422831]
[1758715809190,4.2301,212.7,212.65,11.08422831]
[1758715809692,4.2301,212.7,212.64,11.08422831]
[1758715810291,5.82,212.71,212.64,11.08422831]
[1758715811198,4.2291,212.74,212.66,11.08422831]
[1758715812390,5.82,212.78,212.69,7.24]
[1758715812586,5.82,212.78,212.7,8.07402831]
[1758715812794,5.82,212.78,212.71,7.24]
[1758715813298,7.92718025,212.72,212.65,12.47781267]
[1758715813489,7.92718025,212.72,212.65,7.24]
[1758715814293,5.82,212.72,212.65,7.24]
[1758715814598,4.2294,212.73,212.65,4.2308]
[1758715814894,4.2294,212.73,212.66,7.24]
[1758715815699,4.229,212.75,212.68,7.24]
[1758715816500,7.92718025,212.76,212.68,11.4702]
[1758715816701,5.82,212.76,212.69,7.24]
[1758715817502,4.2286,212.77,212.7,7.24]
[1758715818105,4.2286,212.77,212.7,11.4698]
[1758715818301,10.0482,212.79,212.7,11.4698]
[1758715819501,10.0482,212.79,212.66,65.8112]
[1758715819502,10.0482,212.79,212.73,7.24]
[1758715819805,5.82,212.79,212.73,7.24]
[1758715820198,5.82,212.84,212.75,7.24]
[1758715820403,14.1797059,212.86,212.75,7.24]
[1758715820799,12.15368025,212.88,212.75,7.24]
[1758715821011,10.0465,212.88,212.75,7.24]
[1758715822313,10.0465,212.88,212.8,7.24]
[1758715822507,78.98070608,212.9,212.8,7.24]
[1758715822912,74.75470608,212.9,212.84,7.24]
[1758715823912,10.0456,212.92,212.84,7.24]
[1758715825810,5.82,212.92,212.84,7.24]
[1758715827314,5.82,212.92,212.86,4.2267]
[1758715828115,5.82,212.92,212.84,7.24]
[1758715831210,5.81,212.89,212.82,7.3]
[1758715831615,4.2258,212.92,212.82,7.3]
[1758715832425,4.226,212.91,212.82,7.3]
[1758715832624,5.81,212.92,212.82,7.3]
[1758715832917,5.81,212.91,212.82,7.3]
[1758715833311,4.2266,212.87,212.79,6.33538025]
[1758715833515,4.2266,212.87,212.78,7.3]
[1758715833516,5.81,212.87,212.78,7.3]
[1758715833718,65.7455,212.88,212.78,7.3]
[1758715834016,5.81,212.82,212.78,7.3]
[1758715837021,4.2274,212.83,212.74,4.2291]
[1758715837320,10.0374,212.83,212.74,11.5291]
[1758715837818,10.0374,212.83,212.75,4.2288]
[1758715838014,10.0374,212.83,212.74,7.3]
[1758715838322,4.2278,212.81,212.74,7.3]
[1758715840216,10.0381,212.8,212.74,7.3]
[1758715840414,5.81,212.8,212.74,7.3]
[1758715841122,5.81,212.8,212.7,7.3]
[1758715841918,10.0386,212.77,212.7,7.3]
[1758715843429,4.2289,212.76,212.7,7.3]
[1758715845025,5.81,212.81,212.7,7.3]
[1758715846225,4.228,212.8,212.7,11.5298]
[1758715846620,5.81,212.81,212.71,7.3]
[1758715847124,65.76,212.83,212.71,7.3]
[1758715847329,5.81,212.81,212.71,7.3]
[1758715847623,65.7629,212.82,212.71,7.3]
[1758715847828,5.81,212.81,212.71,7.3]
[1758715848227,4.2284,212.78,212.71,7.3]
[1758715850632,5.81,212.77,212.63,7.3]
[1758715850930,5.81,212.76,212.63,7.3]
[1758715851229,4.2297,212.72,212.64,7.3]
[1758715851432,5.81,212.73,212.64,7.3]
[1758715851734,4.2297,212.72,212.64,7.3]
[1758715852225,5.81,212.74,212.64,11.5311]
[1758715852424,5.81,212.74,212.65,7.3]
[1758715855225,4.2297,212.72,212.65,7.3]
[1758715858526,5.81,212.74,212.65,7.3]
[1758715859029,10.0393,212.74,212.66,4.2306]
[1758715860429,4.2295,212.73,212.65,7.3]
[1758715860631,4.2295,212.73,212.66,1.34881827]
[1758715862132,4.2297,212.72,212.66,1.34881827]
[1758715863131,10.0392,212.74,212.66,1.34881827]
[1758715865431,1.34881827,212.8,212.69,1.34881827]
[1758715865638,5.81,212.79,212.72,1.34881827]
[1758715866231,5.81,212.79,212.73,7.63]
[1758715866432,81.97899597,212.82,212.75,1.34881827]
[1758715866632,5.81,212.86,212.76,7.63]
[1758715867829,5.81,212.86,212.76,8.97881827]
[1758715868230,4.227,212.85,212.76,13.20741827]
[1758715868431,4.227,212.85,212.76,11.8586]
[1758715868639,4.227,212.85,212.77,1.34881827]
[1758715869342,4.227,212.85,212.76,13.20741827]
[1758715873244,5.81,212.86,212.76,13.20741827]
[1758715873245,5.81,212.86,212.77,7.63]
[1758715873443,5.81,212.86,212.8,7.63]
[1758715873847,1.34881827,212.88,212.8,7.63]
[1758715874349,5.57531827,212.88,212.8,7.63]
[1758715874648,1.34881827,212.88,212.8,7.63]
[1758715875048,1.34881827,212.85,212.76,11.55702949]
[1758715875348,5.81,212.84,212.76,7.63]
[1758715876746,5.81,212.81,212.72,3.92702949]
[1758715876953,1.34881827,212.79,212.71,7.63]
[1758715878242,4.2287,212.77,212.71,7.63]
[1758715880750,5.57701827,212.79,212.71,7.63]
[1758715881053,11.38701827,212.79,212.7,7.63]
[1758715881252,7.15881827,212.79,212.7,7.63]
[1758715882251,4.2285,212.78,212.7,11.8598]
[1758715882654,5.81,212.79,212.7,7.63]
[1758715882854,5.81,212.79,212.71,7.63]
[1758715883550,5.81,212.76,212.69,3.93856513]
[1758715883752,5.81,212.76,212.68,3.93856513]
[1758715883951,5.81,212.76,212.69,3.93856513]
[1758715884657,7.15881827,212.77,212.69,3.93856513]
[1758715885356,4.2291,212.75,212.69,3.93856513]
[1758715885949,10.0393,212.74,212.69,3.93856513]
[1758715886154,5.81,212.73,212.69,7.4]
[1758715886754,5.81,212.73,212.68,7.4]
[1758715886954,5.81,212.73,212.67,5.28952918]
[1758715887556,5.81,212.73,212.68,7.4]
[1758715887759,5.81,212.73,212.67,5.28952918]
[1758715887952,5.81,212.73,212.67,12.68952918]
[1758715889055,5.81,212.77,212.7,7.4]
[1758715889447,4.2284,212.78,212.72,7.4]
[1758715889651,1.34881827,212.79,212.72,7.4]
[1758715889851,5.81,212.81,212.72,7.4]
[1758715890348,5.81,212.81,212.73,1.34881827]
[1758715890548,5.81,212.81,212.74,7.4]
[1758715890753,4.2276,212.82,212.74,7.4]
[1758715891157,68.0171,212.85,212.77,11.6285]
[1758715892660,4.2273,212.84,212.77,7.4]
[1758715893459,4.2273,212.84,212.77,11.6284]
[1758715893661,63.79,212.85,212.77,7.4]
[1758715894366,68.0171,212.85,212.78,4.2282]
[1758715899565,4.2273,212.84,212.78,4.2282]
[1758715899764,4.2273,212.84,212.77,7.4]
[1758715900762,4.2273,212.84,212.77,11.6284]
[1758715902263,4.2276,212.82,212.77,7.4]
[1758715902664,5.81,212.81,212.76,1.34881827]
[1758715903054,5.81,212.81,212.77,7.4]
[1758715903263,5.81,212.81,212.76,1.34881827]
[1758715903571,5.81,212.81,212.77,7.4]
[1758715903858,10.0373,212.84,212.77,7.4]
[1758715904764,4.2275,212.83,212.77,7.4]
[1758715906267,4.2275,212.83,212.77,11.6284]
[1758715907361,4.2277,212.82,212.77,7.4]
[1758715907564,5.81,212.81,212.77,7.4]
[1758715908664,5.81,212.81,212.73,12.97801827]
[1758715908969,1.34881827,212.79,212.71,3.94071091]
[1758715909168,5.81,212.78,212.71,3.94071091]
[1758715909558,5.81,212.79,212.72,8.74881827]
[1758715909758,5.81,212.79,212.73,3.94071091]
[1758715910967,5.81,212.79,212.73,5.28952918]
[1758715911560,5.81,212.79,212.74,7.4]
[1758715911768,5.81,212.82,212.74,7.4]
[1758715911969,5.81,212.82,212.74,11.34071091]
[1758715912270,5.81,212.82,212.75,3.94071091]
[1758715912463,6.62812091,212.87,212.79,1.34881827]
[1758715912662,5.81,212.87,212.79,1.34881827]
[1758715913370,5.81,212.87,212.79,5.28952918]
[1758715913772,5.81,212.87,212.79,1.34881827]
[1758715915369,10.0372,212.84,212.79,8.75881827]
[1758715916370,4.2272,212.84,212.79,8.75881827]
[1758715916669,5.81,212.83,212.79,8.75881827]
[1758715916863,5.81,212.83,212.8,7.41]
[1758715917072,10.0368,212.86,212.8,7.41]
[1758715917264,5.81,212.86,212.8,7.41]
[1758715917669,4.2267,212.87,212.81,7.87350652]
[1758715917865,4.2267,212.87,212.82,3.64570652]
[1758715918070,5.81,212.86,212.83,3.64570652]
[1758715918271,4.227,212.85,212.8,7.41]
[1758715918473,5.81,212.84,212.81,3.64569132]
[1758715918670,5.81,212.84,212.82,3.64569132]
[1758715918873,5.81,212.84,212.8,7.41]
[1758715918874,5.81,212.84,212.83,3.64569132]
[1758715919075,5.81,212.84,212.8,7.41]
[1758715919274,5.81,212.84,212.81,3.64633852]